[Event "*** SCC Grand Prix: Titled Tuesday Blitz"]
[Site "Chess.com"]
[Date "2020.07.07"]
[Round "5"]
[White "Sacbutt"]
[Black "Margarita2907"]
[Result "1-0"]
[WhiteElo "2305"]
[BlackElo "2090"]
[TimeControl "180+1"]
[EndTime "10:57:18 PDT"]
[Termination "Sacbutt won by resignation"]

1. d4 {[%clk 0:03:00.9]} 1... d5 {[%clk 0:02:59.4]} 2. c4 {[%clk 0:03:00.7]}
2... e6 {[%clk 0:02:59.9]} 3. Nc3 {[%clk 0:03:00.8]} 3... Nf6 {[%clk 0:02:59.8]}
4. Bg5 {[%clk 0:03:00.8]} 4... Be7 {[%clk 0:02:59.4]} 5. e3 {[%clk 0:03:01]}
5... h6 {[%clk 0:02:58.9]} 6. Bh4 {[%clk 0:02:59.9]} 6... O-O {[%clk 0:02:59]}
7. Nf3 {[%clk 0:03:00.4]} 7... Nbd7 {[%clk 0:02:58.5]} 8. cxd5 {[%clk
0:02:58.6]} 8... Nxd5 {[%clk 0:02:56.8]} 9. Bxe7 {[%clk 0:02:58.2]} 9... Qxe7
{[%clk 0:02:56.8]} 10. Nxd5 {[%clk 0:02:57.1]} 10... exd5 {[%clk 0:02:56.2]} 11.
Rc1 {[%clk 0:02:53.1]} 11... c6 {[%clk 0:02:55.9]} 12. Bd3 {[%clk 0:02:50.5]}
12... Nf6 {[%clk 0:02:55.3]} 13. O-O {[%clk 0:02:48.3]} 13... Ne4 {[%clk
0:02:54.6]} 14. Bxe4 {[%clk 0:02:18.7]} 14... dxe4 {[%clk 0:02:53.5]} 15. Ne5
{[%clk 0:02:17.9]} 15... Qg5 {[%clk 0:02:46.2]} 16. Kh1 {[%clk 0:02:10.1]} 16...
Be6 {[%clk 0:02:40.4]} 17. b3 {[%clk 0:02:02.5]} 17... f5 {[%clk 0:02:34.7]} 18.
Qc2 {[%clk 0:01:56.1]} 18... Bd5 {[%clk 0:02:29]} 19. g3 {[%clk 0:01:47.7]}
19... h5 {[%clk 0:02:06.8]} 20. h4 {[%clk 0:01:33.1]} 20... Qh6 {[%clk
0:02:05.7]} 21. Qc5 {[%clk 0:01:22.7]} 21... Rfd8 {[%clk 0:01:46]} 22. Qe7
{[%clk 0:01:18.5]} 22... Rab8 {[%clk 0:01:30]} 23. Rc5 {[%clk 0:01:02]} 23...
Qd6 {[%clk 0:01:26]} 24. Qg5 {[%clk 0:00:50.1]} 24... Rf8 {[%clk 0:01:08]} 25.
Qxh5 {[%clk 0:00:47.3]} 25... Rf6 {[%clk 0:00:59.5]} 26. Rcc1 {[%clk 0:00:27.5]}
26... Rh6 {[%clk 0:00:49.7]} 27. Qg5 {[%clk 0:00:26.8]} 27... Rf8 {[%clk
0:00:44.1]} 28. Kg2 {[%clk 0:00:25.8]} 28... Qe6 {[%clk 0:00:18.7]} 29. Rh1
{[%clk 0:00:22.9]} 29... a5 {[%clk 0:00:17.4]} 30. Rc5 {[%clk 0:00:19.2]} 30...
a4 {[%clk 0:00:16.8]} 31. bxa4 {[%clk 0:00:19.2]} 31... Bxa2 {[%clk 0:00:16.4]}
32. a5 {[%clk 0:00:19.6]} 32... Bd5 {[%clk 0:00:15.9]} 33. Rc2 {[%clk
0:00:18.4]} 33... Ra8 {[%clk 0:00:15]} 34. Rb2 {[%clk 0:00:17.9]} 34... Ra7
{[%clk 0:00:13.2]} 35. Rhb1 {[%clk 0:00:16.7]} 35... c5 {[%clk 0:00:11.6]} 36.
Rb6 {[%clk 0:00:12.8]} 36... Bc6 {[%clk 0:00:07.4]} 37. Nxc6 {[%clk 0:00:11.8]}
37... bxc6 {[%clk 0:00:07.6]} 38. dxc5 {[%clk 0:00:10.9]} 38... Rxa5 {[%clk
0:00:06.3]} 39. Rb8+ {[%clk 0:00:10.6]} 39... Kh7 {[%clk 0:00:05.8]} 40. Qd8
{[%clk 0:00:10.3]} 40... Kg6 {[%clk 0:00:03.5]} 41. Qe8+ {[%clk 0:00:09.8]}
41... Qxe8 {[%clk 0:00:02.9]} 42. Rxe8 {[%clk 0:00:10.7]} 42... Rxc5 {[%clk
0:00:03.4]} 43. Re6+ {[%clk 0:00:10.5]} 43... Kh7 {[%clk 0:00:03.3]} 44. Re7
{[%clk 0:00:10.4]} 44... Rc2 {[%clk 0:00:02.2]} 45. Rbb7 {[%clk 0:00:10]} 45...
Rg6 {[%clk 0:00:02.2]} 46. Kf1 {[%clk 0:00:10.1]} 46... Rc1+ {[%clk 0:00:01.2]}
47. Ke2 {[%clk 0:00:10.2]} 47... Rc2+ {[%clk 0:00:01.7]} 48. Ke1 {[%clk
0:00:10.6]} 48... Rc1+ {[%clk 0:00:02.2]} 49. Ke2 {[%clk 0:00:10.9]} 49... Ra1
{[%clk 0:00:02.7]} 50. Kd2 {[%clk 0:00:10.9]} 50... Ra2+ {[%clk 0:00:02.8]} 51.
Ke1 {[%clk 0:00:11.1]} 51... Ra1+ {[%clk 0:00:03.2]} 52. Ke2 {[%clk 0:00:11.5]}
52... Ra2+ {[%clk 0:00:03.7]} 53. Kf1 {[%clk 0:00:12.1]} 53... Ra1+ {[%clk
0:00:03.8]} 54. Kg2 {[%clk 0:00:13]} 54... Ra2 {[%clk 0:00:04.2]} 55. Rbc7
{[%clk 0:00:13.4]} 55... Rc2 {[%clk 0:00:03.7]} 56. Rf7 {[%clk 0:00:13.7]} 56...
Ra2 {[%clk 0:00:03.6]} 57. Rxf5 {[%clk 0:00:13.8]} 57... Rc2 {[%clk 0:00:03.4]}
58. Rh5+ {[%clk 0:00:13.9]} 58... Kg8 {[%clk 0:00:03.4]} 59. Re5 {[%clk
0:00:14.3]} 59... Kh7 {[%clk 0:00:03.2]} 60. Rxe4 {[%clk 0:00:14.2]} 60... Rc5
{[%clk 0:00:02.3]} 61. Rf4 {[%clk 0:00:14]} 61... Rc2 {[%clk 0:00:02.3]} 62. Rc8
{[%clk 0:00:13.7]} 62... c5 {[%clk 0:00:02.8]} 63. Rff8 {[%clk 0:00:13.8]} 63...
Rb6 {[%clk 0:00:02.5]} 64. Rh8+ {[%clk 0:00:13.7]} 64... Kg6 {[%clk 0:00:02.6]}
65. h5+ {[%clk 0:00:14.1]} 65... Kf6 {[%clk 0:00:02.8]} 66. h6 {[%clk 0:00:14]}
66... gxh6 {[%clk 0:00:02.1]} 67. Rxh6+ {[%clk 0:00:13.8]} 67... Ke7 {[%clk
0:00:02.8]} 68. Rxb6 {[%clk 0:00:14.7]} 68... c4 {[%clk 0:00:03]} 69. Rbc6
{[%clk 0:00:14.9]} 69... c3 {[%clk 0:00:02.7]} 70. Rxc3 {[%clk 0:00:14.9]} 1-0

[Event "*** SCC Grand Prix: Titled Tuesday Blitz"]
[Site "Chess.com"]
[Date "2020.07.07"]
[Round "5"]
[White "Sychev_Klementy"]
[Black "Korchmar_Vasiliy"]
[Result "0-1"]
[WhiteElo "2793"]
[BlackElo "2627"]
[TimeControl "180+1"]
[EndTime "10:57:20 PDT"]
[Termination "Korchmar_Vasiliy won by resignation"]

1. e4 {[%clk 0:03:00.9]} 1... c5 {[%clk 0:03:00]} 2. Nf3 {[%clk 0:03:00.3]} 2...
d6 {[%clk 0:03:00.3]} 3. d4 {[%clk 0:02:59.9]} 3... cxd4 {[%clk 0:03:01.2]} 4.
Nxd4 {[%clk 0:03:00.7]} 4... Nf6 {[%clk 0:03:01.8]} 5. Nc3 {[%clk 0:03:01]} 5...
Nc6 {[%clk 0:03:02.5]} 6. Bg5 {[%clk 0:02:59.4]} 6... e6 {[%clk 0:03:02.4]} 7.
Bb5 {[%clk 0:02:59.5]} 7... Bd7 {[%clk 0:03:02.1]} 8. Bxc6 {[%clk 0:03:00]} 8...
bxc6 {[%clk 0:03:03]} 9. Qf3 {[%clk 0:03:00.4]} 9... Be7 {[%clk 0:02:52.9]} 10.
e5 {[%clk 0:03:00.4]} 10... Nd5 {[%clk 0:02:39.6]} 11. Bxe7 {[%clk 0:02:59.6]}
11... Qxe7 {[%clk 0:02:40.5]} 12. Qg3 {[%clk 0:02:58.9]} 12... O-O {[%clk
0:02:21.4]} 13. exd6 {[%clk 0:02:54.4]} 13... Qf6 {[%clk 0:02:21.7]} 14. Nb3
{[%clk 0:02:25.3]} 14... e5 {[%clk 0:01:49.4]} 15. Ne4 {[%clk 0:02:19.4]} 15...
Qh6 {[%clk 0:01:41.8]} 16. Rd1 {[%clk 0:01:24]} 16... f5 {[%clk 0:01:41.1]} 17.
Nec5 {[%clk 0:01:24.1]} 17... f4 {[%clk 0:01:39.5]} 18. Qf3 {[%clk 0:01:24.3]}
18... Bf5 {[%clk 0:01:27]} 19. c4 {[%clk 0:01:14.9]} 19... e4 {[%clk 0:01:20.5]}
20. Qe2 {[%clk 0:01:10.5]} 20... f3 {[%clk 0:01:18.9]} 21. Qf1 {[%clk
0:00:20.4]} 21... Nf4 {[%clk 0:01:12.3]} 22. gxf3 {[%clk 0:00:18.6]} 22... exf3
{[%clk 0:01:13.2]} 23. Rd2 {[%clk 0:00:18.8]} 23... Bh3 {[%clk 0:00:57.3]} 24.
Qg1 {[%clk 0:00:18.1]} 24... Bg2 {[%clk 0:00:50.5]} 25. Kd1 {[%clk 0:00:18.4]}
25... Nh3 {[%clk 0:00:44.1]} 26. Qe1 {[%clk 0:00:18.1]} 26... Rae8 {[%clk
0:00:44.7]} 27. d7 {[%clk 0:00:18.3]} 27... Rd8 {[%clk 0:00:16.6]} 28. Qe6+
{[%clk 0:00:10.6]} 28... Qxe6 {[%clk 0:00:07.8]} 29. Nxe6 {[%clk 0:00:11.5]}
29... Bxh1 {[%clk 0:00:08.5]} 30. Nbc5 {[%clk 0:00:11.7]} 30... Nxf2+ {[%clk
0:00:03.5]} 31. Rxf2 {[%clk 0:00:10.6]} 31... Bg2 {[%clk 0:00:03]} 32. Nxf8
{[%clk 0:00:07.5]} 32... Kxf8 {[%clk 0:00:02]} 33. Ne6+ {[%clk 0:00:07.7]} 33...
Ke7 {[%clk 0:00:02.6]} 34. Nxd8 {[%clk 0:00:07.9]} 34... Kxd8 {[%clk 0:00:03.5]}
35. Rd2 {[%clk 0:00:08]} 35... g5 {[%clk 0:00:03.7]} 36. Ke1 {[%clk 0:00:08.1]}
36... g4 {[%clk 0:00:03.7]} 37. Kf2 {[%clk 0:00:08.4]} 37... h5 {[%clk
0:00:04.3]} 38. Kg3 {[%clk 0:00:07.2]} 38... Bf1 {[%clk 0:00:03.9]} 39. b3
{[%clk 0:00:05.6]} 39... Be2 {[%clk 0:00:03.9]} 40. a4 {[%clk 0:00:05.2]} 40...
h4+ {[%clk 0:00:04.2]} 41. Kf2 {[%clk 0:00:04.7]} 41... g3+ {[%clk 0:00:04]} 42.
hxg3 {[%clk 0:00:04.2]} 42... h3 {[%clk 0:00:04.9]} 43. Kg1 {[%clk 0:00:02.7]}
43... h2+ {[%clk 0:00:03.2]} 44. Kxh2 {[%clk 0:00:01.8]} 44... f2 {[%clk
0:00:03.7]} 45. Rxe2 {[%clk 0:00:01.6]} 45... f1=Q {[%clk 0:00:04.3]} 46. Rg2
{[%clk 0:00:01.8]} 46... Kxd7 {[%clk 0:00:03.7]} 47. g4 {[%clk 0:00:02.1]} 47...
Qf4+ {[%clk 0:00:04.2]} 48. Kg1 {[%clk 0:00:01.8]} 48... Qe3+ {[%clk 0:00:04.1]}
49. Kh2 {[%clk 0:00:02.3]} 49... Qxb3 {[%clk 0:00:04.2]} 50. g5 {[%clk
0:00:02.4]} 50... Qxc4 {[%clk 0:00:04]} 51. g6 {[%clk 0:00:02.9]} 51... Qh4+
{[%clk 0:00:04.4]} 52. Kg1 {[%clk 0:00:02.7]} 52... Qe1+ {[%clk 0:00:04.7]} 53.
Kh2 {[%clk 0:00:03.2]} 53... Qe5+ {[%clk 0:00:05.3]} 54. Kg1 {[%clk 0:00:03.5]}
54... Qg7 {[%clk 0:00:06.2]} 55. Kf1 {[%clk 0:00:03.3]} 55... c5 {[%clk
0:00:05.7]} 56. Ke2 {[%clk 0:00:03.7]} 56... Kc6 {[%clk 0:00:05.6]} 57. Rg4
{[%clk 0:00:03.6]} 57... Kd5 {[%clk 0:00:04.8]} 58. Kd3 {[%clk 0:00:03.9]} 58...
c4+ {[%clk 0:00:04.1]} 59. Kc2 {[%clk 0:00:03.5]} 59... Kc5 {[%clk 0:00:04.3]}
60. a5 {[%clk 0:00:02.8]} 60... a6 {[%clk 0:00:03.2]} 61. Kd2 {[%clk 0:00:01.9]}
61... Kb4 {[%clk 0:00:03.3]} 62. Kc2 {[%clk 0:00:01.5]} 62... Kxa5 {[%clk
0:00:03.4]} 0-1

[Event "*** SCC Grand Prix: Titled Tuesday Blitz"]
[Site "Chess.com"]
[Date "2020.07.07"]
[Round "5"]
[White "ZAbdumalik"]
[Black "VitaliyBernadskiy"]
[Result "0-1"]
[WhiteElo "2587"]
[BlackElo "2761"]
[TimeControl "180+1"]
[EndTime "10:57:20 PDT"]
[Termination "VitaliyBernadskiy won by checkmate"]

1. e4 {[%clk 0:03:00.9]} 1... c5 {[%clk 0:02:55.7]} 2. Nf3 {[%clk 0:03:00.6]}
2... a6 {[%clk 0:02:55.3]} 3. c4 {[%clk 0:02:57.9]} 3... e6 {[%clk 0:02:49.6]}
4. Nc3 {[%clk 0:02:56.5]} 4... d6 {[%clk 0:02:47.7]} 5. d4 {[%clk 0:02:55.7]}
5... cxd4 {[%clk 0:02:48.6]} 6. Nxd4 {[%clk 0:02:56]} 6... Nf6 {[%clk
0:02:47.9]} 7. Be2 {[%clk 0:02:55.3]} 7... b6 {[%clk 0:02:47.6]} 8. O-O {[%clk
0:02:54.7]} 8... Bb7 {[%clk 0:02:44.9]} 9. f3 {[%clk 0:02:54.9]} 9... Nbd7
{[%clk 0:02:44.8]} 10. Be3 {[%clk 0:02:54.5]} 10... Be7 {[%clk 0:02:44.7]} 11.
Rc1 {[%clk 0:02:54.1]} 11... Rc8 {[%clk 0:02:43.7]} 12. Kh1 {[%clk 0:02:53.7]}
12... h6 {[%clk 0:02:40.5]} 13. b3 {[%clk 0:02:45.2]} 13... g5 {[%clk
0:02:36.3]} 14. Bd3 {[%clk 0:02:38.1]} 14... Ne5 {[%clk 0:02:35.8]} 15. Bb1
{[%clk 0:02:37.5]} 15... Nfd7 {[%clk 0:02:33.6]} 16. f4 {[%clk 0:02:35.3]} 16...
gxf4 {[%clk 0:02:32.9]} 17. Bxf4 {[%clk 0:02:14.7]} 17... h5 {[%clk 0:02:30.8]}
18. Qe2 {[%clk 0:02:08.8]} 18... Bg5 {[%clk 0:02:24.8]} 19. Rce1 {[%clk
0:01:52.1]} 19... Qe7 {[%clk 0:02:17.9]} 20. Qd2 {[%clk 0:01:47.7]} 20... Bxf4
{[%clk 0:02:06.9]} 21. Qxf4 {[%clk 0:01:47]} 21... Kd8 {[%clk 0:02:04.1]} 22. a4
{[%clk 0:01:42.7]} 22... Kc7 {[%clk 0:01:59.5]} 23. a5 {[%clk 0:01:42]} 23...
bxa5 {[%clk 0:01:56.1]} 24. Qd2 {[%clk 0:01:37.2]} 24... Kb8 {[%clk 0:01:53.1]}
25. Na4 {[%clk 0:01:35.5]} 25... Qd8 {[%clk 0:01:52.5]} 26. Nf3 {[%clk
0:01:34.9]} 26... Qc7 {[%clk 0:01:49.7]} 27. Ng5 {[%clk 0:01:33.6]} 27... Rcf8
{[%clk 0:01:36.4]} 28. Rd1 {[%clk 0:01:32.6]} 28... Nc5 {[%clk 0:01:15]} 29.
Qxd6 {[%clk 0:01:15.3]} 29... Qxd6 {[%clk 0:01:02.1]} 30. Rxd6 {[%clk 0:01:06]}
30... Nxb3 {[%clk 0:00:45.6]} 31. Bc2 {[%clk 0:00:42.3]} 31... Nxc4 {[%clk
0:00:44.6]} 32. Rd7 {[%clk 0:00:41.7]} 32... Nbd2 {[%clk 0:00:42.7]} 33. Rfxf7
{[%clk 0:00:38.6]} 33... Rxf7 {[%clk 0:00:42.7]} 34. Nxf7 {[%clk 0:00:37.5]}
34... Rc8 {[%clk 0:00:41.2]} 35. h4 {[%clk 0:00:31.1]} 35... Bxe4 {[%clk
0:00:35.2]} 36. Bxe4 {[%clk 0:00:25.9]} 36... Nxe4 {[%clk 0:00:36.1]} 37. Kh2
{[%clk 0:00:23.1]} 37... Nc5 {[%clk 0:00:35.5]} 38. Nxc5 {[%clk 0:00:21.4]}
38... Rxc5 {[%clk 0:00:36.4]} 39. Re7 {[%clk 0:00:22.1]} 39... a4 {[%clk
0:00:30.4]} 40. Rxe6 {[%clk 0:00:20.8]} 40... a3 {[%clk 0:00:30]} 41. Re2 {[%clk
0:00:20.1]} 41... Nb2 {[%clk 0:00:26.9]} 42. Re3 {[%clk 0:00:18.7]} 42... Ra5
{[%clk 0:00:25.9]} 43. Ne5 {[%clk 0:00:16.5]} 43... a2 {[%clk 0:00:19.3]} 44.
Nc6+ {[%clk 0:00:16.8]} 44... Kc7 {[%clk 0:00:19.2]} 45. Nxa5 {[%clk 0:00:16.7]}
45... a1=Q {[%clk 0:00:18.5]} 46. Nb3 {[%clk 0:00:17.2]} 46... Qa4 {[%clk
0:00:16.8]} 47. g3 {[%clk 0:00:13.5]} 47... Qg4 {[%clk 0:00:13.8]} 48. Nc5
{[%clk 0:00:11.5]} 48... Nc4 {[%clk 0:00:12.4]} 49. Rc3 {[%clk 0:00:11.3]} 49...
Kc6 {[%clk 0:00:10.4]} 50. Nd3 {[%clk 0:00:10.4]} 50... Qe2+ {[%clk 0:00:09.5]}
51. Kh3 {[%clk 0:00:10.6]} 51... Kb5 {[%clk 0:00:08.6]} 52. Nf4 {[%clk
0:00:10.9]} 52... Qg4+ {[%clk 0:00:07.9]} 53. Kh2 {[%clk 0:00:10.9]} 53... Ne5
{[%clk 0:00:08.4]} 54. Rb3+ {[%clk 0:00:10.3]} 54... Ka4 {[%clk 0:00:07.9]} 55.
Rb6 {[%clk 0:00:10.2]} 55... Nf3+ {[%clk 0:00:08.8]} 56. Kh1 {[%clk 0:00:08.1]}
56... Qxg3 {[%clk 0:00:08.1]} 57. Rxa6+ {[%clk 0:00:08.5]} 57... Kb5 {[%clk
0:00:08.3]} 58. Ra2 {[%clk 0:00:08.5]} 58... Qxh4+ {[%clk 0:00:07.6]} 59. Kg2
{[%clk 0:00:07.7]} 59... Qxf4 {[%clk 0:00:08.5]} 60. Rf2 {[%clk 0:00:07.3]}
60... Qg4+ {[%clk 0:00:08.1]} 61. Kf1 {[%clk 0:00:07.3]} 61... Ng5 {[%clk
0:00:07.7]} 62. Rg2 {[%clk 0:00:06.7]} 62... Qc4+ {[%clk 0:00:07.5]} 63. Kg1
{[%clk 0:00:06.7]} 63... Ne4 {[%clk 0:00:08.4]} 64. Kh2 {[%clk 0:00:06.8]} 64...
h4 {[%clk 0:00:08.2]} 65. Rb2+ {[%clk 0:00:06.8]} 65... Kc5 {[%clk 0:00:07.7]}
66. Rg2 {[%clk 0:00:07.7]} 66... Kd4 {[%clk 0:00:07.6]} 67. Rg4 {[%clk
0:00:07.4]} 67... Ke5 {[%clk 0:00:07.5]} 68. Rxh4 {[%clk 0:00:06.6]} 68... Qe2+
{[%clk 0:00:07.4]} 69. Kh3 {[%clk 0:00:06.3]} 69... Qf3+ {[%clk 0:00:06.9]} 70.
Kh2 {[%clk 0:00:06.4]} 70... Qg3+ {[%clk 0:00:07.8]} 71. Kh1 {[%clk 0:00:06.8]}
71... Nf2# {[%clk 0:00:08.7]} 0-1

[Event "*** SCC Grand Prix: Titled Tuesday Blitz"]
[Site "Chess.com"]
[Date "2020.07.07"]
[Round "5"]
[White "SzMM19"]
[Black "Kezin_Roman"]
[Result "0-1"]
[WhiteElo "2575"]
[BlackElo "2750"]
[TimeControl "180+1"]
[EndTime "10:57:21 PDT"]
[Termination "Kezin_Roman won on time"]

1. e4 {[%clk 0:03:00.9]} 1... c5 {[%clk 0:03:00.2]} 2. c4 {[%clk 0:03:00.8]}
2... Nc6 {[%clk 0:02:59.7]} 3. Nc3 {[%clk 0:03:01.1]} 3... g6 {[%clk 0:02:59]}
4. g3 {[%clk 0:03:01.7]} 4... Bg7 {[%clk 0:02:59.4]} 5. Bg2 {[%clk 0:03:02.6]}
5... e6 {[%clk 0:03:00]} 6. Nge2 {[%clk 0:03:03.1]} 6... Nge7 {[%clk 0:03:00.6]}
7. O-O {[%clk 0:03:03.6]} 7... O-O {[%clk 0:03:01.2]} 8. d3 {[%clk 0:03:04.1]}
8... d6 {[%clk 0:03:01.7]} 9. Rb1 {[%clk 0:03:04.6]} 9... b6 {[%clk 0:03:01.2]}
10. a3 {[%clk 0:03:05]} 10... Bb7 {[%clk 0:03:01.7]} 11. b4 {[%clk 0:03:05.5]}
11... Qd7 {[%clk 0:03:02.3]} 12. Be3 {[%clk 0:03:05.6]} 12... Nd4 {[%clk
0:03:00.1]} 13. Qd2 {[%clk 0:03:05.7]} 13... Rae8 {[%clk 0:02:56.1]} 14. Bg5
{[%clk 0:03:05.3]} 14... Nec6 {[%clk 0:02:53.7]} 15. b5 {[%clk 0:03:00.1]} 15...
Nxe2+ {[%clk 0:02:32.7]} 16. Nxe2 {[%clk 0:03:01]} 16... Nd4 {[%clk 0:02:33.4]}
17. Nxd4 {[%clk 0:03:01.4]} 17... Bxd4 {[%clk 0:02:34.3]} 18. Bh6 {[%clk
0:03:01.4]} 18... Bg7 {[%clk 0:02:33.1]} 19. Bxg7 {[%clk 0:03:01.6]} 19... Kxg7
{[%clk 0:02:34]} 20. d4 {[%clk 0:03:02.1]} 20... cxd4 {[%clk 0:02:30.6]} 21.
Qxd4+ {[%clk 0:03:03]} 21... e5 {[%clk 0:02:31.2]} 22. Qd3 {[%clk 0:03:03.3]}
22... Rc8 {[%clk 0:02:21.3]} 23. Rfd1 {[%clk 0:03:02.9]} 23... Rfd8 {[%clk
0:02:21.7]} 24. Rd2 {[%clk 0:03:01.9]} 24... Qe6 {[%clk 0:02:20.4]} 25. Rc1
{[%clk 0:02:36.1]} 25... Rc5 {[%clk 0:02:19.6]} 26. h4 {[%clk 0:02:29.1]} 26...
Bc8 {[%clk 0:02:18.3]} 27. Kh2 {[%clk 0:02:23.5]} 27... Qe7 {[%clk 0:02:13.8]}
28. a4 {[%clk 0:02:16.9]} 28... Be6 {[%clk 0:02:12.9]} 29. Bh3 {[%clk
0:02:03.9]} 29... Bxh3 {[%clk 0:02:12.4]} 30. Kxh3 {[%clk 0:02:04.8]} 30... Qe6+
{[%clk 0:02:12.6]} 31. Kg2 {[%clk 0:02:04.4]} 31... Rdc8 {[%clk 0:02:12.7]} 32.
Qxd6 {[%clk 0:01:41.7]} 32... Qxd6 {[%clk 0:02:13.6]} 33. Rxd6 {[%clk
0:01:42.4]} 33... Rxc4 {[%clk 0:02:14.2]} 34. Rxc4 {[%clk 0:01:43.3]} 34... Rxc4
{[%clk 0:02:14.7]} 35. a5 {[%clk 0:01:44.2]} 35... bxa5 {[%clk 0:02:13.1]} 36.
Ra6 {[%clk 0:01:44]} 36... Rxe4 {[%clk 0:02:11.6]} 37. Rxa7 {[%clk 0:01:44.4]}
37... a4 {[%clk 0:02:11.8]} 38. b6 {[%clk 0:01:44.5]} 38... Rb4 {[%clk
0:02:11.7]} 39. b7 {[%clk 0:01:44.7]} 39... a3 {[%clk 0:02:09.4]} 40. Rxa3
{[%clk 0:01:41.8]} 40... Rxb7 {[%clk 0:02:09.2]} 41. Ra6 {[%clk 0:01:42.2]}
41... Rb3 {[%clk 0:02:06.5]} 42. Ra5 {[%clk 0:01:40]} 42... e4 {[%clk
0:01:57.6]} 43. Ra4 {[%clk 0:01:39.9]} 43... f5 {[%clk 0:01:52.2]} 44. Ra5
{[%clk 0:01:29.5]} 44... Rb7 {[%clk 0:01:49.2]} 45. Re5 {[%clk 0:01:27.1]} 45...
Kh6 {[%clk 0:01:48.4]} 46. Re8 {[%clk 0:01:25]} 46... Kh5 {[%clk 0:01:46.7]} 47.
Rc8 {[%clk 0:01:14.8]} 47... Kg4 {[%clk 0:01:38.5]} 48. Rc2 {[%clk 0:01:04.4]}
48... Rb3 {[%clk 0:01:32.2]} 49. Ra2 {[%clk 0:01:02.6]} 49... Rf3 {[%clk
0:01:27.1]} 50. Ra4 {[%clk 0:00:54.4]} 50... Rb3 {[%clk 0:01:25.4]} 51. Ra7
{[%clk 0:00:51.6]} 51... Rb2 {[%clk 0:01:24.2]} 52. Ra3 {[%clk 0:00:50]} 52...
Re2 {[%clk 0:01:17.3]} 53. Kf1 {[%clk 0:00:48.4]} 53... Rd2 {[%clk 0:01:16]} 54.
Kg2 {[%clk 0:00:48.9]} 54... h6 {[%clk 0:01:02.1]} 55. Rb3 {[%clk 0:00:43.7]}
55... g5 {[%clk 0:00:59.2]} 56. hxg5 {[%clk 0:00:44.6]} 56... hxg5 {[%clk
0:00:59.7]} 57. Ra3 {[%clk 0:00:44.8]} 57... f4 {[%clk 0:00:49.8]} 58. gxf4
{[%clk 0:00:45.7]} 58... gxf4 {[%clk 0:00:50.6]} 59. Kg1 {[%clk 0:00:34.5]}
59... Rd3 {[%clk 0:00:43.7]} 60. Ra1 {[%clk 0:00:30]} 60... Kf3 {[%clk
0:00:42.9]} 61. Rb1 {[%clk 0:00:14.3]} 61... Ke2 {[%clk 0:00:38.2]} 62. Rb4
{[%clk 0:00:10.2]} 62... Rd1+ {[%clk 0:00:24.5]} 63. Kg2 {[%clk 0:00:06.6]}
63... f3+ {[%clk 0:00:02.7]} 64. Kg3 {[%clk 0:00:06.6]} 64... e3 {[%clk
0:00:02.4]} 0-1

[Event "*** SCC Grand Prix: Titled Tuesday Blitz"]
[Site "Chess.com"]
[Date "2020.07.07"]
[Round "5"]
[White "poppy73"]
[Black "guillembaches"]
[Result "1-0"]
[WhiteElo "2221"]
[BlackElo "2412"]
[TimeControl "180+1"]
[EndTime "10:57:21 PDT"]
[Termination "poppy73 won on time"]

1. e4 {[%clk 0:03:00.9]} 1... c5 {[%clk 0:02:58.6]} 2. Nf3 {[%clk 0:03:00.3]}
2... d6 {[%clk 0:02:59]} 3. d4 {[%clk 0:03:00.8]} 3... cxd4 {[%clk 0:02:59.5]}
4. Nxd4 {[%clk 0:03:01.7]} 4... Nf6 {[%clk 0:03:00]} 5. Nc3 {[%clk 0:03:02.4]}
5... Nc6 {[%clk 0:03:00.5]} 6. g3 {[%clk 0:03:01]} 6... Nxd4 {[%clk 0:02:56.2]}
7. Qxd4 {[%clk 0:02:58.4]} 7... g6 {[%clk 0:02:56.2]} 8. Bg2 {[%clk 0:02:48.3]}
8... Bg7 {[%clk 0:02:56.1]} 9. O-O {[%clk 0:02:46.5]} 9... O-O {[%clk
0:02:54.5]} 10. Be3 {[%clk 0:02:30.2]} 10... Ng4 {[%clk 0:02:50.5]} 11. Qd2
{[%clk 0:02:28.7]} 11... Nxe3 {[%clk 0:02:50.3]} 12. Qxe3 {[%clk 0:02:29.6]}
12... Be6 {[%clk 0:02:45.5]} 13. Rad1 {[%clk 0:02:27.9]} 13... Qa5 {[%clk
0:02:32.8]} 14. a3 {[%clk 0:02:19.6]} 14... Bxc3 {[%clk 0:02:27.8]} 15. Qxc3
{[%clk 0:02:18.1]} 15... Qxc3 {[%clk 0:02:27.1]} 16. bxc3 {[%clk 0:02:19]} 16...
Rac8 {[%clk 0:02:23.8]} 17. Rb1 {[%clk 0:02:17.9]} 17... b6 {[%clk 0:02:21.6]}
18. a4 {[%clk 0:02:03.4]} 18... Rxc3 {[%clk 0:02:17.3]} 19. Rb2 {[%clk 0:02:03]}
19... Rfc8 {[%clk 0:02:14.7]} 20. Rc1 {[%clk 0:02:02.6]} 20... Kg7 {[%clk
0:02:08.7]} 21. Bf1 {[%clk 0:01:56.4]} 21... R8c5 {[%clk 0:02:05.3]} 22. Bb5
{[%clk 0:01:46.4]} 22... f5 {[%clk 0:02:01.8]} 23. exf5 {[%clk 0:01:41.7]} 23...
Bxf5 {[%clk 0:01:58.6]} 24. Re1 {[%clk 0:01:40.7]} 24... Kf6 {[%clk 0:01:55.3]}
25. Rb4 {[%clk 0:01:16.8]} 25... Rxc2 {[%clk 0:01:41.6]} 26. g4 {[%clk
0:01:09.1]} 26... Be6 {[%clk 0:01:35.9]} 27. Rf4+ {[%clk 0:00:53.9]} 27... Kg5
{[%clk 0:01:28.1]} 28. Rfe4 {[%clk 0:00:52.7]} 28... Bxg4 {[%clk 0:01:22.2]} 29.
Rxe7 {[%clk 0:00:38.6]} 29... Rc1 {[%clk 0:01:12.6]} 30. Rxc1 {[%clk 0:00:33.3]}
30... Rxc1+ {[%clk 0:01:10.3]} 31. Kg2 {[%clk 0:00:34.2]} 31... h5 {[%clk
0:00:52]} 32. Rxa7 {[%clk 0:00:28.9]} 32... Bf5 {[%clk 0:00:52]} 33. Kf3 {[%clk
0:00:21.9]} 33... d5 {[%clk 0:00:51.4]} 34. Rb7 {[%clk 0:00:15.8]} 34... d4
{[%clk 0:00:45.5]} 35. Rxb6 {[%clk 0:00:15]} 35... Rc3+ {[%clk 0:00:43.7]} 36.
Ke2 {[%clk 0:00:14.6]} 36... d3+ {[%clk 0:00:42.5]} 37. Kd1 {[%clk 0:00:12.4]}
37... Ra3 {[%clk 0:00:38.2]} 38. Rd6 {[%clk 0:00:11.9]} 38... Kf4 {[%clk
0:00:37.4]} 39. Kd2 {[%clk 0:00:10.6]} 39... Ra2+ {[%clk 0:00:36.8]} 40. Kc3
{[%clk 0:00:10.7]} 40... Rc2+ {[%clk 0:00:36.1]} 41. Kb3 {[%clk 0:00:10.3]}
41... d2 {[%clk 0:00:34.3]} 42. Be2 {[%clk 0:00:08.2]} 42... g5 {[%clk
0:00:21.3]} 43. Bd1 {[%clk 0:00:08.2]} 43... Rc1 {[%clk 0:00:17.2]} 44. Rxd2
{[%clk 0:00:08.1]} 44... Be6+ {[%clk 0:00:17.3]} 45. Kb2 {[%clk 0:00:07.6]}
45... Rc5 {[%clk 0:00:17]} 46. Bxh5 {[%clk 0:00:07.3]} 46... g4 {[%clk
0:00:15.7]} 47. Bg6 {[%clk 0:00:06.9]} 47... Kf3 {[%clk 0:00:13.1]} 48. Bc2
{[%clk 0:00:06.2]} 48... Rc8 {[%clk 0:00:09.7]} 49. Ka3 {[%clk 0:00:06.4]} 49...
Bc4 {[%clk 0:00:08.5]} 50. Bd1+ {[%clk 0:00:06.4]} 50... Kf4 {[%clk 0:00:05.3]}
51. Rd4+ {[%clk 0:00:06.5]} 51... Ke5 {[%clk 0:00:05.6]} 52. Rxg4 {[%clk
0:00:06.2]} 52... Be6 {[%clk 0:00:05.7]} 53. Rb4 {[%clk 0:00:05.6]} 53... Rc1
{[%clk 0:00:04.1]} 54. Bb3 {[%clk 0:00:05.2]} 54... Bf5 {[%clk 0:00:01.1]} 55.
a5 {[%clk 0:00:04.8]} 55... Ra1+ {[%clk 0:00:01.2]} 56. Ba2 {[%clk 0:00:04.7]}
1-0